Cogmind - Beta 16.1 @@@ ROGUE MODE // 2026.02.13 @ 18:42:25 Player: Fun Result: Destroyed by 3D-6P9(R) with Subdweller Machine Gun Performance ------------- Evolutions (0) 0 Regions Visited (2) 400 Robots Destroyed (3) 15 Value Destroyed (90) 90 Prototype IDs (0) 0 Alien Tech Used (0) 0 Bonus (0) 0 TOTAL SCORE: 505 Bonus ------- None Cogmind --------- Core Integrity 0/250 Matter 295/300 Energy 100/100 System Corruption 0% Temperature Cool (0) Movement Core (100) Ox1 Location -10/Subcaves Parts ------- > --- POWER (1) -------- (None) > --- PROPULSION (2) --- (None) > --- UTILITY (2) ------ (None) > --- WEAPON (2) ------- Small Laser Subdweller Laser > --- INVENTORY (5) ---- Flight Unit Large Battery (200) Scrap Shield Fragment (48) Peak State ------------ > --- POWER ------------ Light Ion Engine > --- PROPULSION ------- Light Treads Light Treads > --- UTILITY ---------- Scrap Shield > --- WEAPON ----------- Small Laser Subdweller Laser > --- INVENTORY -------- Flight Unit Scrap Shield Fragment [Rating: 10] Favorites ----------- Power Light Ion Engine Engine Light Ion Engine Propulsion Light Treads Treads Light Treads Wheel Wheel Flight Unit Flight Unit Utility Large Battery Device Structural Scanner Storage Large Battery Processor Targeting Computer Protection Scrap Shield Weapon Small Laser Energy Gun Small Laser Ballistic Gun Light Assault Rifle Build | -11 -10 -10 ------- Run | Yrd Mat Sub Slots Evolved . | . . . Power . | . . . Propulsion . | . . . Utility . | . . . Weapon . | . . . Parts Attached 19 | 4 7 8 Power 2 | 1 . 1 Engine 2 | 1 . 1 Core . | . . . Reactor . | . . . Propulsion 6 | 2 2 2 Treads 2 | . . 2 Leg . | . . . Wheel 2 | 2 . . Hover . | . . . Flight 2 | . 2 . Utility 5 | 1 2 2 Device 1 | . 1 . Storage 2 | 1 1 . Processor 1 | . . 1 Hackware . | . . . Protection 1 | . . 1 Artifact . | . . . Weapon 6 | . 3 3 Energy Gun 5 | . 3 2 Energy Cannon . | . . . Ballistic Gun 1 | . . 1 Ballistic Cannon . | . . . Launcher . | . . . Special Weapon . | . . . Impact Weapon . | . . . Slashing Weapon . | . . . Piercing Weapon . | . . . Special Melee Weapon . | . . . Unidentified Prototypes . | . . . Parts Lost 7 | . . 7 Power 2 | . . 2 Propulsion 3 | . . 3 Utility 1 | . . 1 Weapon 1 | . . 1 Highest Loss Streak 4 | . . 4 To Critical Strikes . | . . . Average Backups 3 | 2 4 3 Power . | . 1 . Propulsion 1 | . 1 1 Utility . | . . . Weapon . | 1 1 . Tool/Special . | . . . Unused Backups . | . . . Power . | . . . Propulsion . | . . . Utility . | . . . Weapon . | . . . Tool/Special . | . . . Average Slot Usage (%) 87 | . 89 86 Engine 13 | . 14 13 Treads 14 | . . 19 Wheel 3 | . 14 . Flight 9 | . 14 7 Storage 9 | . 16 6 Processor 2 | . . 2 Protection 4 | . . 6 Energy Gun 25 | . 27 25 Ballistic Gun 1 | . . 2 Peak Build Rating 10 | 4 7 10 Average Rating 7 | 2 6 8 On Entrance 3 | . 4 6 Avg Prop Armor Cover (%) . | . . . Naked Turns . | . . . Heaviest Build 26 | 8 14 26 Greatest Support 40 | 26 26 40 Greatest Overweight (x) 1 | . 1 1 Average Overweight (x) . | . . . Largest Inventory Capacity 8 | 8 8 5 Average Capacity 5 | 6 6 5 Most Carried 6 | 6 5 5 Average Carried 4 | 2 4 4 Final Capacity 8 | 8 5 5 Final Carried 6 | 6 5 3 Class Distribution -------------------- 100% | Mutant Dominant Class ---------------- Mutant | -10/Materials Mutant | -10/Subcaves Resources | -11 -10 -10 ----------- Run | Yrd Mat Sub Matter Collected 374 | 225 77 72 Remotely . | . . . Salvage Created 103 | . 19 84 Parts 8 | . 2 6 Haulers Intercepted . | . . . Recyclers Shooed . | . . . Parts Field Recycled . | . . . Retrieved Matter . | . . . Parts Self-Destructed 9 | . . 9 Prevented . | . . . Parts Restored . | . . . Kills | -11 -10 -10 ------- Run | Yrd Mat Sub Combat Hostiles Destroyed 3 | . 1 2 Guns 3 | . 1 2 Classes Destroyed 2 | . 1 1 Swarmer 1 | . 1 . Subdweller 2 | . . 2 Best Kill Streak 1 | . 1 1 Combat Bots Only 1 | . 1 1 Max Kills in Single Turn 1 | . 1 1 Gunslinging . | . . . Exploded . | . . . Melee . | . . . Uniques/NPCs Destroyed . | . . . Combat | -11 -10 -10 -------- Run | Yrd Mat Sub Hostile Shots Fired 78 | . 16 62 Missed 23 | . 4 19 Hits 55 | . 12 43 Projectile 55 | . 12 43 Critical Strikes 2 | . . 2 Damage Taken 1053 | . 97 956 Core 250 | . 9 241 Absorbed by Shields . | . . . Core Remaining (%) 100 | 100 . . Volleys Fired 42 | . 5 37 Largest 2 | . 2 2 Hottest 100 | . 90 100 Shots Fired 82 | . 10 72 Gun 82 | . 10 72 Cannon . | . . . Launcher . | . . . Special . | . . . Kinetic 14 | . . 14 Thermal 68 | . 10 58 Explosive . | . . . Electromagnetic . | . . . Robot Hit Streak 15 | . 1 15 Robot Miss Streak 7 | . 7 3 Penetration Max . | . . . Secondary Targets . | . . . Shots Hit Robots 50 | . 2 48 Core Hits 8 | . 1 7 Critical Kills . | . . . Critical Parts Destroyed . | . . . Critical Strikes . | . . . Melee Attacks . | . . . Impact . | . . . Slashing . | . . . Piercing . | . . . Sneak Attacks . | . . . Combat Hostiles . | . . . Follow-up Attacks . | . . . Damage Inflicted 612 | . 44 568 Guns 612 | . 44 568 Cannons . | . . . Explosions . | . . . Melee . | . . . Ramming . | . . . Kinetic 67 | . . 67 Thermal 545 | . 44 501 Explosive . | . . . Electromagnetic . | . . . Impact . | . . . Slashing . | . . . Piercing . | . . . Highest Corruption . | . . . Average Corruption . | . . . Corruption Purged . | . . . Corruption Blocked . | . . . Overload Shots . | . . . Overflow Damage . | . . . Projectiles . | . . . Explosions . | . . . Melee . | . . . Knockbacks . | . . . Impact . | . . . Kinetic . | . . . Secondary . | . . . Self-Inflicted Damage . | . . . Shots . | . . . Rammed . | . . . Targets Rammed . | . . . Kicked . | . . . Crushed . | . . . Highest Temperature 120 | . 120 . Average Temperature 68 | . 68 . Received Heat Transfer 171 | . . 171 Siege Activations . | . . . Martial Activations . | . . . Shielding Activations . | . . . Robots Disrupted . | . . . Combat Hostiles . | . . . Robots Corrupted . | . . . Combat Hostiles . | . . . Parts Fried . | . . . Impact Corruptions . | . . . Robots Melted . | . . . Combat Hostiles . | . . . Parts Melted 1 | . . 1 Heat Transferred 1037 | . 112 925 Parts Sabotaged . | . . . Parts Stolen . | . . . Parts Stripped . | . . . Power Chain Reactions . | . . . Alert | -11 -10 -10 ------- Run | Yrd Mat Sub Maximum Alert Level . | . . . Low Security (%) 100 | 100 100 . Level 1 . | . . . Level 2 . | . . . Level 3 . | . . . Level 4 . | . . . Level 5 . | . . . High Security . | . . . Max Security . | . . . Peak Influence 20 | . 20 . Initial . | . . . Average 1 | . 2 . Influence Increases 24 | . 24 . Destroy 0b10 Robot/C 20 | . 20 . Successful Hack 4 | . 4 . Influence Decreases 24 | . 24 . Time Decay 24 | . 24 . Squads Dispatched . | . . . Investigation . | . . . Extermination . | . . . Reinforcement . | . . . Assault . | . . . Garrison . | . . . Intercept . | . . . Searches Triggered . | . . . Construction Impeded . | . . . Haulers Reinforced . | . . . Active Scanning Responses . | . . . Cargo Convoy Interrupts . | . . . Stealth | -11 -10 -10 --------- Run | Yrd Mat Sub Distress Signals . | . . . Communications Jammed . | . . . Distress Signals . | . . . Times Spotted 10 | . 4 6 Peak Tracking Total 3 | . 3 2 Tactical Retreats . | . . . Traps | -11 -10 -10 ------- Run | Yrd Mat Sub Traps Triggered . | . . . Indirectly . | . . . Trap Hack Attempts . | . . . Triggered . | . . . Disarmed . | . . . Reprogrammed . | . . . Reused . | . . . Traps Extracted . | . . . Installed . | . . . Triggered . | . . . Machines | -11 -10 -10 ---------- Run | Yrd Mat Sub Machines Disabled . | . . . Max in Single Turn . | . . . Machines Repaired . | . . . Machines Dismantled . | . . . Machines Sabotaged . | . . . Overloaded Fab Kills . | . . . Hacking | -11 -10 -10 --------- Run | Yrd Mat Sub Machines Accessed 1 | . 1 . Terminals 1 | . 1 . Fabricators . | . . . Repair Stations . | . . . Recycling Units . | . . . Scanalyzers . | . . . Garrison Access . | . . . Total Hacks 1 | . 1 . Successful 1 | . 1 . Failed . | . . . Catastrophic . | . . . Database Lockouts . | . . . Manual . | . . . Terminals 1 | . 1 . Fabricators . | . . . Repair Stations . | . . . Recycling Units . | . . . Scanalyzers . | . . . Garrison Access . | . . . Terminal Hacks 1 | . 1 . Emergency Access Points 1 | . 1 . Fabricator Hacks . | . . . Repair Station Hacks . | . . . Recycling Unit Hacks . | . . . Scanalyzer . | . . . Garrison Access Hacks . | . . . Unauthorized Hacks . | . . . Terminals . | . . . Fabricators . | . . . Repair Stations . | . . . Recycling Units . | . . . Scanalyzers . | . . . Garrison Access . | . . . Data Cores Recovered . | . . . Used . | . . . Hacking Detections . | . . . Full Trace Events . | . . . Feedback Events . | . . . Feedback Blocked . | . . . Robot Schematics Acquired . | . . . Robots Built . | . . . Authchips . | . . . Time . | . . . Total Robot Build Rating . | . . . Part Schematics Acquired . | . . . Parts Built . | . . . Authchips . | . . . Time . | . . . Total Part Build Rating . | . . . Part Studies Acquired . | . . . Parts Repaired . | . . . Time . | . . . Parts Recycled . | . . . Recycled Matter . | . . . Retrieved Matter . | . . . Retrieved Components . | . . . Parts Scanalyzed . | . . . Part Schematics Acquired . | . . . Parts Damaged . | . . . Bothacking | -11 -10 -10 ------------ Run | Yrd Mat Sub Used RIF Installer . | . . . Robots Hacked . | . . . Non-combat . | . . . Combat . | . . . Robot Hacks Applied . | . . . Relay Couplers Released . | . . . Fabnet Peak Effective % . | . . . Robots Rewired . | . . . Allies Hacked . | . . . Hacks Repelled . | . . . Allies | -11 -10 -10 -------- Run | Yrd Mat Sub Total Allies . | . . . Largest Group . | . . . Highest-Rated Group . | . . . Highest-Rated Ally . | . . . Total Orders . | . . . Ally Attacks . | . . . Total Damage . | . . . Kills . | . . . Allies Corrupted . | . . . Allies Melted . | . . . Intel | -11 -10 -10 ------- Run | Yrd Mat Sub Active Infowar (turns) 19 | . 19 . Structural 19 | . 19 . Robot Analysis Total . | . . . Derelict Logs Recovered . | . . . Drone Launches . | . . . Drone Recoveries . | . . . Exploration | -11 -10 -10 ------------- Run | Yrd Mat Sub Turns Passed 627 | 66 140 421 Spaces Moved 461 | 60 143 258 Core 11 | 11 . . Treads 123 | . . 123 Legs . | . . . Wheels 89 | 49 40 . Hover . | . . . Flight 238 | . 103 135 Fastest Speed 37 | 50 37 37 Average Speed 84 | 82 62 96 Slowest Speed 160 | 90 125 160 Overloaded Moves . | . . . Propulsion Burnouts . | . . . Robots Hopped . | . . . Potential Cave-ins . | . . . Cave-ins Triggered . | . . . Exploration Rate (%) 20 | 3 30 29 Regions Visited 2 Branch Regions 1 Pre-discovered Areas . | . . . Known Exits Taken . | . . . Unknown Exits Taken 2 | 1 1 . Scrap Searched . | . . . Spaces Dug . | . . . Terrain Destroyed . | . . . Melee . | . . . Projectile . | . . . AOE . | . . . Terrain Rammed . | . . . Walls Destroyed . | . . . Machines Disabled . | . . . Actions | -11 -10 -10 --------- Run | Yrd Mat Sub Total 623 | 76 186 361 Wait 65 | 3 16 46 Move 459 | 59 142 258 Hop . | . . . Pick Up 24 | 10 8 6 Fast Attach 1 | . 1 . Attach 14 | 4 4 6 Detach . | . . . Swap 4 | . 2 2 Drop 13 | . 8 5 Fire 42 | . 5 37 Melee . | . . . Ram . | . . . Kick . | . . . Crush . | . . . Escape Stasis . | . . . Rewire . | . . . Trap . | . . . Miscellaneous 1 | . . 1 Route ------- -11/Scrapyard -10/Materials (discovered 2 exits: [*Mat] / [*Sub]) -10/Subcaves (discovered 1 exit: [Scr]) History --------- Turn | Location | Event 2 | -11/Scrapyard | Met Revision 17 8 | -11/Scrapyard | Discovered new exit (range 16) 67 | -11/Scrapyard | Entered Materials 68 | -10/Materials | Met a group of wandering Federalists 184 | -10/Materials | Discovered new exit (range 12) 206 | -10/Materials | Discovered new exit (range 3) 207 | -10/Materials | Entered Subcaves 208 | -10/Subcaves | Continued accompanying wandering Federalists (6) 208 | -10/Subcaves | Approached by a straggling Scientist 303 | -10/Subcaves | Build established: Mutant 379 | -10/Subcaves | Core integrity fell below 50% 625 | -10/Subcaves | Core integrity fell below 20% 628 | -10/Subcaves | Destroyed by 3D-6P9(R) with Subdweller Machine Gun Last Messages --------------- [Achievement: Survival Of The Most Covered] Extracted 4 energy. Acquired Lrg. Battery. Acquired Sub. Laser. Acquired Scrap Shield Fragment. Acquired 6 matter. 16-SEO(c): "I think it's somewhere southeast of here" Sub. Laser shoots sparks and powers down. 16-SEO(c): "I think it's somewhere southeast of here" Dropped Broken Sub. Laser. 16-SEO(c): "I think it's somewhere southeast of here" Scrap Shield destroyed. Lgt. Treads destroyed. 16-SEO(c): "I think it's somewhere southeast of here" Lgt. Treads destroyed. Lgt. Ion Engine destroyed. Map ----- +----------------------------------------------------+ | ?????????????????????????????????????????????????? | | ?????????????????????????????????????????????????? | | ?????????????????????????????????????????????????? | | ?????????????????????????????????????????????????? | | ?????????????????????????????????????????????????? | | ?????????????????????????????????????????????????? | | ?????????????????????????????????????????????????? | | ????????????????????????????? ?????????????????? | | ????#####???????????????????? ???????????????? | | ????? #????????????????##? ??????????????? | | ?????# ##??????????????# ## ??????????????? | | ?###?# ####?????###### ?????????????? | | ## ### #??#### ?????????????? | | ## ??## ?????????????? | | #?## #?? ?????????????? | | ### ### ????????????? | | ??# ## ?????????????? | | #??# #????????????????? | | #### ## #????????????????? | | #### #???????????????????????? | | [ ##??# ## ## ##??????????????????????? | | ## #?? #### ###" #??????????????????????? | | ## #?## #??#####?# #??????????????????????? | | #??####????????# ##?????????????????????? | | # ##?????????????## c #?????????????????????? | | ######?????????????## @ #?????????????????????? | | ##?????????????????# ###?????????????????????? | | #?????????????????# RR##???????????????????????? | | ##?????????????????## #????????????????????????? | | #??????????????????#" #????????????????????????? | | ##??????????????????## #???????????????????????? | | #???????????????????#" ??????????????????????? | | ????????????????????##" ?????????????????????? | | ?????????????????????## "????????????????????? | | ??????????????????????#### %??????????????????? | | ??????????????????????????# ?????????????????? | | ??????????????????????????? ????????????????? | | ???????????????????????????? ## ???????????????? | | ???????????????????????????? ##??#???????????????? | | ?????????????????????????????#???????????????????? | | ?????????????????????????????????????????????????? | | ?????????????????????????????????????????????????? | | ?????????????????????????????????????????????????? | | ?????????????????????????????????????????????????? | | ?????????????????????????????????????????????????? | | ?????????????????????????????????????????????????? | | ?????????????????????????????????????????????????? | | ?????????????????????????????????????????????????? | | ?????????????????????????????????????????????????? | | ?????????????????????????????????????????????????? | +----------------------------------------------------+ Best States ------------- Heat Dissipation 25 Energy Generation 10 Energy Capacity 325 Matter Stores 300 Matter Capacity 300 Sight Range 16 Terrain Scan Density 10 Armor Coverage 800 Evasion (%) 62 Targeting Accuracy 5 Recoil Reduction 2 Item Schematics ----------------- None Robot Schematics ------------------ None Fabricated ------------ Nothing Repaired ---------- Nothing Studied --------- None Alien Tech Used ----------------- None Achievements -------------- Strength In Numbers Survival Of The Most Covered You Again Challenges ------------ None Game ------ Seed DefenseInterceptFlamer Manual? 0 Play Time 00:13:15 Cumulative 5.5 hours Start 2026.02.13 @ 18:29:59 End 2026.02.13 @ 18:42:25 Sessions 1 Manual Loads 0 Difficulty Rogue Special Mode None Game No. 8 Rogue 8 Adventurer 0 Explorer 0 Win Type - Total 0 Types 0/0/0/0/0/0/0/0/0/0 Lore% 6 Gallery% 11 Achievement% 13 Wizard Run 0 Options --------- Layout 1 ASCII 0 Keyboard 0 Movement Mouse Keybinds 0 Fullscreen 1 Font 24/Smallcaps Map View 50x35 Zoom Use 0% Tactical HUD 0 Map Filters NONE Filters NONE Steam 1 RUN: 82d2b8ca-67ca-49b7-90f7-a7adbcf0edb9